bitfinex-derivatives/quotes_BTCF0:USTF0_20250313
["timestamp","ask_amount","ask_price","bid_price","bid_amount"]
[1741889029484,0.1243437,80445.0,80443.0,0.2258464]
[1741889029781,0.062171,80446.0,80431.0,0.062182]
[1741889030080,0.0621745,80442.0,80437.0,0.1015]
[1741889030274,0.1243519,80440.0,80439.0,0.1243495]
[1741889030475,0.1243519,80440.0,80439.0,0.2258495]
[1741889030672,0.1985,80441.0,80439.0,0.3854095]
[1741889030877,0.12987196,80440.0,80439.0,0.2258495]
[1741889031178,0.12987196,80440.0,80439.0,0.1243495]
[1741889031376,0.12987196,80440.0,80431.0,0.1243638]
[1741889031377,0.00552096,80440.0,80431.0,0.1243638]
[1741889031675,0.0621808,80434.0,80433.0,0.1865322]
[1741889031880,0.0925,80439.0,80435.0,0.1243557]
[1741889032073,0.0925,80439.0,80438.0,0.1243541]
[1741889032386,0.2168526,80439.0,80438.0,0.1243541]
[1741889032575,0.0925,80439.0,80438.0,0.1243541]
[1741889033077,0.02332697,80442.0,80438.0,0.2837141]
[1741889033284,0.15936,80465.0,80443.0,0.1243464]
[1741889033579,0.0497,80467.0,80443.0,0.15936]
[1741889033786,0.0621647,80454.0,80444.0,0.1002]
[1741889034086,0.1865177,80448.0,80447.0,0.1864972]
[1741889034271,0.0621653,80456.0,80455.0,0.0621617]
[1741889034478,0.1864978,80456.0,80455.0,0.0621617]
[1741889034980,0.0621602,80460.0,80453.0,0.062165]
[1741889035178,0.1243226,80459.0,80458.0,0.1243217]
[1741889036080,0.0984,80462.0,80460.0,0.1243186]
[1741889036274,0.2184186,80461.0,80460.0,0.1243186]
[1741889036475,0.2184186,80461.0,80450.0,0.1243352]
[1741889036476,0.1243356,80451.0,80450.0,0.1243352]
[1741889036883,0.2184356,80451.0,80450.0,0.1243352]
[1741889037081,0.0941,80451.0,80450.0,0.1243352]
[1741889037277,0.218434,80451.0,80450.0,0.1243352]
[1741889039188,0.1243387,80448.0,80446.0,0.01310856]
[1741889039383,0.1243387,80448.0,80447.0,0.12452665]
[1741889039780,0.0927,80449.0,80448.0,0.1243387]
[1741889039988,0.2170371,80449.0,80448.0,0.2216387]
[1741889040186,0.2170371,80449.0,80448.0,0.1243387]
[1741889040490,0.1243387,80448.0,80447.0,0.00018645]
[1741889040685,0.2156387,80448.0,80447.0,0.00018645]
[1741889040891,0.029068,80448.0,80447.0,0.12452665]
[1741889041278,0.0927,80449.0,80448.0,0.1243387]
[1741889041484,0.0927,80449.0,80448.0,0.3077387]
[1741889042176,0.1243112,80466.0,80459.0,0.1243186]
[1741889042377,0.0978,80461.0,80460.0,0.2155201]
[1741889042782,2e-08,80464.0,80462.0,0.124317]
[1741889042985,2e-08,80464.0,80463.0,0.3077155]
[1741889043290,2e-08,80464.0,80463.0,0.5277155]
[1741889043488,2e-08,80464.0,80463.0,0.4670355]
[1741889044990,0.12431392,80464.0,80463.0,0.4670355]
[1741889045177,0.12431392,80464.0,80463.0,0.2155155]
[1741889045381,0.12431392,80464.0,80463.0,0.0912]
[1741889045589,0.12431392,80464.0,80458.0,1.49288]
[1741889045590,0.1243217,80459.0,80458.0,1.49288]
[1741889045892,0.1243217,80459.0,80458.0,0.4088]
[1741889046478,0.1242817,80459.0,80458.0,0.4088]
[1741889046885,0.1243387,80448.0,80447.0,0.12452435]
[1741889047088,0.1243387,80448.0,80447.0,0.00018645]
[1741889047491,0.1243526,80439.0,80438.0,0.59934304]
[1741889047792,0.1243526,80439.0,80438.0,0.1243541]
[1741889047978,0.0965,80447.0,80446.0,0.1243417]
[1741889048183,0.1865115,80451.0,80450.0,0.1243325]
[1741889048383,0.1243387,80448.0,80447.0,0.224539]
[1741889048580,0.2830049,80450.0,80449.0,0.1243371]
[1741889048994,0.1586684,80450.0,80449.0,0.1243371]
[1741889049290,0.00018645,80459.0,80447.0,0.2]
[1741889049486,0.1586625,80457.0,80456.0,0.1243232]
[1741889049693,0.0621635,80456.0,80430.0,0.26247077]
[1741889049887,0.1243464,80443.0,80437.0,0.16004]
[1741889050080,0.1243464,80443.0,80442.0,0.12453435]
[1741889050277,0.0986,80444.0,80443.0,0.1243464]
[1741889050794,0.198,80451.0,80443.0,0.0934]
[1741889050988,0.198,80451.0,80449.0,0.1243356]
[1741889050989,0.1865091,80450.0,80449.0,0.1243356]
[1741889051191,0.1243387,80448.0,80447.0,0.0621694]
[1741889051584,0.1865187,80445.0,80444.0,0.1865062]
[1741889051786,0.1865148,80447.0,80446.0,0.1243371]
[1741889052183,0.2486871,80447.0,80446.0,0.1243371]
[1741889052495,0.1243448,80444.0,80443.0,0.98209173]
[1741889052788,0.1243448,80444.0,80443.0,0.98145173]
[1741889052997,0.1243448,80444.0,80443.0,0.82285173]
[1741889053186,0.1243448,80444.0,80443.0,0.73901232]
[1741889053383,0.20433467,80444.0,80428.0,0.71250651]
[1741889053583,0.1243804,80421.0,80420.0,0.82238707]
[1741889053801,0.1243804,80421.0,80420.0,0.82174707]
[1741889054690,0.2204804,80421.0,80420.0,0.82174707]
[1741889055087,0.2339222,80421.0,80420.0,0.82174707]
[1741889056294,0.3319222,80421.0,80420.0,0.82174707]
[1741889056987,0.3319222,80421.0,80412.0,0.00018645]
[1741889056988,0.2075418,80421.0,80412.0,0.00018645]
[1741889057187,0.1243928,80413.0,80412.0,0.12457875]
[1741889057387,0.1243928,80413.0,80412.0,0.00018645]
[1741889057797,0.1243928,80413.0,80393.0,0.01269603]
[1741889057798,0.1244144,80399.0,80393.0,0.01269603]
[1741889057996,0.32664163,80399.0,80398.0,0.29017689]
[1741889058190,0.47664163,80399.0,80398.0,0.29017689]
[1741889058391,0.48980432,80399.0,80387.0,0.44474684]
[1741889058694,0.1244237,80393.0,80387.0,0.44474684]
[1741889059002,0.16553093,80393.0,80387.0,0.44493341]
[1741889059590,0.1244237,80393.0,80387.0,0.44493341]
[1741889059791,0.1244228,80395.0,80394.0,0.1244184]
[1741889059992,0.1244237,80393.0,80387.0,0.44493341]
[1741889060595,0.3188237,80393.0,80387.0,0.44493341]
[1741889060791,0.1244315,80388.0,80387.0,0.00018657]
[1741889060995,0.1244315,80388.0,80372.0,0.1244551]
[1741889060996,0.16104,80388.0,80372.0,0.1244551]
[1741889061193,0.1244624,80368.0,80367.0,0.1244609]
[1741889061501,0.1867101,80364.0,80363.0,0.1244672]
[1741889062094,0.0622355,80364.0,80363.0,0.1244672]
[1741889063590,0.00018657,80372.0,80371.0,0.1244578]
[1741889063993,0.12464277,80372.0,80369.0,0.1042]
[1741889064193,0.00018657,80372.0,80369.0,0.1042]
[1741889064399,0.00018657,80372.0,80371.0,0.1244578]
[1741889064996,0.1951351,80389.0,80388.0,0.1244315]
[1741889065207,0.1951351,80389.0,80388.0,0.13765209]
[1741889065404,0.1866451,80389.0,80388.0,0.13765209]
[1741889065695,0.1866451,80389.0,80388.0,0.01322059]
[1741889065902,0.0622151,80389.0,80388.0,0.1244315]
[1741889066194,0.0622151,80389.0,80388.0,0.3324315]
[1741889067598,0.14852356,80401.0,80388.0,0.208]
[1741889067797,0.14852356,80401.0,80396.0,0.1244191]
[1741889068199,0.14852356,80401.0,80396.0,0.23]
[1741889068397,0.0094207,80418.0,80402.0,0.0622046]
[1741889068596,0.0094207,80418.0,80417.0,0.1243866]
[1741889068795,0.1338057,80418.0,80417.0,0.1243866]
[1741889069000,0.124385,80418.0,80417.0,0.1243866]
[1741889069307,0.0621913,80420.0,80416.0,0.0954]
[1741889069308,0.1243866,80417.0,80416.0,0.0954]
[1741889069603,0.2251866,80417.0,80416.0,0.0954]
[1741889069902,0.2251866,80417.0,80416.0,0.2197881]
[1741889070205,0.11047399,80425.0,80424.0,0.1243758]
[1741889070206,0.23484859,80425.0,80424.0,0.1243758]
[1741889070705,0.23484859,80425.0,80424.0,0.2197758]
[1741889071506,0.23484859,80425.0,80424.0,0.3163758]
[1741889071898,0.12455927,80426.0,80425.0,0.1243742]
[1741889072092,0.12455927,80426.0,80425.0,0.1961]
[1741889072292,0.12455927,80426.0,80425.0,0.3204742]
[1741889072500,0.22435927,80426.0,80425.0,0.3204742]
[1741889072697,0.22435927,80426.0,80425.0,0.1961]
[1741889073205,0.32715927,80426.0,80425.0,0.1961]
[1741889073406,0.22435927,80426.0,80425.0,0.1961]
[1741889073904,0.12455927,80426.0,80425.0,0.3204742]
[1741889074104,0.00018657,80426.0,80425.0,0.3204742]
[1741889074312,0.12455927,80426.0,80425.0,0.3204742]
[1741889074610,0.12455927,80426.0,80425.0,0.0966]
[1741889074810,0.1243835,80419.0,80418.0,0.0988]
[1741889075000,0.1243974,80412.0,80403.0,0.1002]
[1741889075310,0.1243974,80410.0,80409.0,0.16458447]
[1741889075697,0.1243974,80410.0,80409.0,0.00018657]
[1741889075909,0.1243974,80410.0,80409.0,0.12458557]
[1741889076115,0.1243974,80410.0,80409.0,0.00018657]
[1741889076407,0.1243974,80410.0,80409.0,0.12458557]
[1741889077406,0.12439,80416.0,80415.0,0.1243881]
[1741889077609,0.12456087,80426.0,80425.0,0.1243742]
[1741889077809,0.0621916,80421.0,80417.0,0.1049]
[1741889078010,0.1243835,80419.0,80418.0,0.1059]
[1741889078403,0.1865728,80423.0,80422.0,0.1243742]
[1741889078603,0.0621898,80423.0,80420.0,0.0621907]
[1741889078802,0.1243804,80421.0,80420.0,0.0621907]
[1741889079208,0.0621956,80415.0,80410.0,0.0621984]
[1741889079415,0.1243974,80411.0,80410.0,0.1243927]
[1741889080403,0.1243974,80411.0,80409.0,0.00018657]
[1741889080404,0.1554649,80419.0,80418.0,0.124385]
[1741889080704,0.062194,80416.0,80412.0,0.0621969]
[1741889080917,0.1243974,80410.0,80409.0,0.00018657]
[1741889081209,0.2837974,80410.0,80409.0,7e-08]
[1741889082001,0.4847974,80410.0,80409.0,7e-08]
[1741889082909,0.6347974,80410.0,80409.0,7e-08]
[1741889084414,0.67581106,80410.0,80409.0,7e-08]
[1741889084612,0.77261106,80410.0,80409.0,7e-08]
[1741889086210,0.1244469,80378.0,80377.0,0.00186599]
[1741889086404,0.1244469,80378.0,80365.0,0.00953241]
[1741889086605,0.12445,80376.0,80365.0,0.00953241]
[1741889086811,0.1244655,80366.0,80365.0,0.00953241]
[1741889087013,0.1594,80379.0,80374.0,0.1244518]
[1741889087214,0.1594,80382.0,80354.0,0.16884935]
[1741889087417,0.1244609,80369.0,80368.0,0.12464897]
[1741889087720,0.0622247,80377.0,80376.0,0.12445]
[1741889088218,0.1866857,80374.0,80373.0,0.1866749]
[1741889088611,0.11634228,80384.0,80369.0,0.1035]
[1741889088919,0.0622276,80373.0,80372.0,0.1244562]
[1741889089811,0.1034,80382.0,80381.0,0.0622204]
[1741889089812,0.0622212,80382.0,80381.0,0.0622204]
[1741889090319,0.0622288,80372.0,80369.0,0.1035]
[1741889090515,0.1244593,80370.0,80369.0,0.2279578]
[1741889090918,0.1244593,80370.0,80369.0,0.1035]
[1741889091108,0.1244593,80370.0,80369.0,0.2279609]
[1741889091518,0.1244609,80369.0,80368.0,0.00018657]
[1741889091916,0.1244609,80369.0,80368.0,0.12464897]
[1741889092121,0.1673296,80371.0,80368.0,0.12464897]
[1741889092122,0.0622296,80371.0,80370.0,0.1244593]
[1741889092326,0.1244609,80369.0,80368.0,0.00018657]
[1741889092917,0.1244609,80369.0,80368.0,0.12464897]
[1741889093824,0.1244609,80369.0,80368.0,0.00018657]
[1741889094426,0.3221609,80369.0,80368.0,0.00018657]
[1741889095019,0.1244581,80371.0,80369.0,0.0622297]
[1741889095321,0.1244581,80371.0,80370.0,0.2229578]
[1741889095527,0.1244581,80371.0,80370.0,0.1969]
[1741889095828,0.1244581,80371.0,80370.0,0.3213593]
[1741889097117,0.0933277,80373.0,80372.0,0.1244562]
[1741889097118,0.0311,80373.0,80372.0,0.1244562]
[1741889097318,0.1555547,80373.0,80372.0,0.1244562]
[1741889097522,0.1555547,80373.0,80372.0,0.3213562]
[1741889097821,0.12754213,80373.0,80372.0,0.40013158]
[1741889099024,0.12754213,80373.0,80372.0,0.27567538]
[1741889099424,0.12754213,80373.0,80372.0,0.07877538]
[1741889099624,0.1244547,80373.0,80372.0,0.07877538]
[1741889099824,0.3203547,80373.0,80372.0,0.07877538]
[1741889100123,0.3203547,80373.0,80372.0,0.04452521]
[1741889100517,0.33362938,80373.0,80372.0,0.04452521]
[1741889100719,0.03966,80374.0,80372.0,0.01712508]
[1741889100925,0.1244547,80373.0,80372.0,0.01712508]
[1741889101129,0.1244547,80373.0,80372.0,0.14158128]
[1741889101429,0.1244547,80373.0,80372.0,0.01712508]
[1741889101632,0.2232547,80373.0,80372.0,0.01712508]
[1741889102229,0.1244547,80373.0,80372.0,0.01712508]
[1741889102525,0.1244547,80373.0,80372.0,0.16487473]
[1741889103025,0.08942,80374.0,80373.0,0.1244547]
[1741889103229,0.2138731,80374.0,80373.0,0.1244547]
[1741889103430,0.08942,80374.0,80373.0,0.1244547]
[1741889103634,0.2138731,80374.0,80373.0,0.1244547]
[1741889104226,0.08942,80374.0,80373.0,0.1244547]
[1741889104531,0.2138731,80374.0,80373.0,0.16487323]
[1741889104731,0.08942,80374.0,80373.0,0.16487323]
[1741889104921,0.18565446,80398.0,80373.0,0.63921853]
[1741889105123,0.18565446,80398.0,80397.0,0.1244175]
[1741889105419,0.31007046,80398.0,80397.0,0.1244175]
[1741889105819,0.18565446,80398.0,80397.0,0.1244175]
[1741889106025,0.31007046,80398.0,80397.0,0.13752504]
[1741889106226,0.31007046,80398.0,80397.0,0.1244175]
[1741889106529,0.124416,80398.0,80397.0,0.16483603]
[1741889108419,0.124416,80398.0,80397.0,0.04041853]
[1741889108828,0.1244284,80390.0,80368.0,1.08432]
[1741889109132,0.1244593,80373.0,80372.0,0.408302]
[1741889109324,0.1866812,80377.0,80376.0,0.0622233]
[1741889109530,0.2489077,80377.0,80376.0,0.1022233]
[1741889110628,0.1244593,80370.0,80369.0,0.0962]
[1741889110936,0.1244593,80370.0,80369.0,0.2206609]
[1741889111631,0.0622288,80372.0,80368.0,0.00082657]
[1741889111827,0.1244609,80369.0,80368.0,0.00018657]
[1741889112331,0.1244609,80369.0,80368.0,0.12464897]
[1741889112533,0.1244609,80369.0,80368.0,0.00018657]
[1741889113519,0.07399,80399.0,80368.0,0.00018657]
[1741889113720,0.07399,80399.0,80383.0,0.1244376]
[1741889113926,0.07399,80399.0,80398.0,0.124416]
[1741889114131,0.1984048,80399.0,80398.0,0.124416]
[1741889114326,0.1984048,80399.0,80398.0,0.228716]
[1741889115424,0.1984048,80399.0,80398.0,0.330716]
[1741889115625,0.1984048,80399.0,80390.0,0.00018657]
[1741889115626,0.1244268,80391.0,80390.0,0.00018657]
[1741889115830,0.1244268,80391.0,80390.0,0.12461497]
[1741889116025,0.1244268,80391.0,80390.0,0.00018657]
[1741889116430,0.1244469,80378.0,80377.0,0.00064]
[1741889116633,0.0412044,80378.0,80360.0,0.1046]
[1741889116836,0.1244616,80371.0,80370.0,0.1866812]
[1741889117132,0.1244616,80371.0,80367.0,0.0622318]
[1741889117133,0.0622265,80375.0,80368.0,0.334762]
[1741889117327,0.1244562,80376.0,80375.0,0.12445]
[1741889117526,0.1244562,80376.0,80362.0,0.01288766]
[1741889117527,0.1866612,80386.0,80385.0,0.0622166]
[1741889117727,0.0622233,80380.0,80376.0,0.0622244]
[1741889117922,0.0622233,80380.0,80377.0,0.1244477]
[1741889117923,0.1244485,80378.0,80377.0,0.1244477]
[1741889118636,0.1244624,80368.0,80367.0,0.18687637]
[1741889119434,0.1244624,80368.0,80367.0,0.06241757]
[1741889119634,0.1244624,80368.0,80367.0,0.00018657]
[1741889120133,0.26237736,80368.0,80367.0,0.00018657]
[1741889120324,0.26237736,80368.0,80367.0,0.12465057]
[1741889120531,0.18582008,80380.0,80375.0,0.1244516]
[1741889120930,0.18582008,80380.0,80375.0,0.1844516]
[1741889121136,0.18582008,80380.0,80375.0,0.15725923]
[1741889121431,0.1038,80397.0,80375.0,0.15725923]
[1741889121432,0.18582008,80382.0,80381.0,0.1244423]
[1741889121932,0.31026078,80382.0,80381.0,0.1244423]
[1741889122334,0.18582008,80382.0,80381.0,0.1244423]
[1741889123038,0.31026078,80382.0,80381.0,0.1244423]
[1741889123333,0.18582008,80382.0,80381.0,0.1244423]
[1741889123735,0.1244516,80376.0,80375.0,0.1244442]
[1741889124135,0.18582008,80382.0,80375.0,0.4944442]
[1741889124337,0.17061596,80400.0,80378.0,0.0622232]
[1741889124639,0.26004179,80430.0,80404.0,0.1244067]
[1741889124640,0.17061596,80410.0,80404.0,0.1244067]
[1741889124847,0.17061596,80410.0,80409.0,0.124399]
[1741889125134,0.00291283,80410.0,80409.0,0.264399]
[1741889125527,0.02842,80414.0,80409.0,0.264399]
[1741889125528,0.02842,80414.0,80413.0,0.1243928]
[1741889125730,0.02842,80414.0,80413.0,0.3543928]
[1741889126037,0.00018657,80418.0,80417.0,0.1243866]
[1741889126336,0.00018657,80418.0,80417.0,0.2837066]
[1741889127034,0.1564239,80426.0,80425.0,0.1243742]
[1741889127342,8e-08,80428.0,80427.0,0.1243711]
[1741889127647,0.40634365,80450.0,80439.0,0.1243526]
[1741889127832,0.0621695,80448.0,80439.0,0.5136326]
[1741889128141,0.04971,80458.0,80448.0,0.1243387]
[1741889128142,0.2233371,80449.0,80448.0,0.1243387]
[1741889128335,0.0621699,80448.0,80445.0,0.1243402]
[1741889128531,0.2888101,80448.0,80445.0,0.04]
[1741889128732,0.2249417,80447.0,80446.0,0.1243417]
[1741889128932,0.2249417,80447.0,80446.0,0.1643417]
[1741889129133,0.3304417,80447.0,80446.0,0.17903258]
[1741889129334,0.3304417,80447.0,80446.0,0.05469088]
[1741889129540,0.3304417,80447.0,80446.0,0.01469088]
[1741889129834,0.1243417,80447.0,80446.0,0.01469088]
[1741889130041,0.1006,80447.0,80446.0,0.13903258]
[1741889130342,0.2298247,80457.0,80456.0,0.1243263]
[1741889130541,0.124334,80451.0,80450.0,0.0621677]
[1741889130738,0.062166,80454.0,80450.0,0.0621677]
[1741889130939,0.00186572,80462.0,80451.0,0.56804]
[1741889131240,0.1006,80468.0,80467.0,0.1243093]
[1741889131542,0.1055,80476.0,80464.0,0.15924]
[1741889131839,0.1864148,80490.0,80489.0,0.1242715]
[1741889132043,0.1864069,80494.0,80493.0,0.1242665]
[1741889132338,0.0621341,80494.0,80493.0,0.1242645]
[1741889132544,0.1242722,80491.0,80490.0,0.1864081]
[1741889132730,0.1052,80497.0,80481.0,0.00018644]
[1741889132932,0.1049,80524.0,80492.0,0.0621348]
[1741889133130,0.1049,80524.0,80482.0,0.56804]
[1741889133131,0.1052,80508.0,80499.0,0.1242599]
[1741889133434,0.1242575,80501.0,80499.0,0.1242599]
[1741889133631,0.1242558,80502.0,80499.0,0.1242599]
[1741889133830,0.1034,80506.0,80499.0,0.1242599]
[1741889133831,0.2052,80500.0,80499.0,0.13866338]
[1741889134028,0.1,80500.0,80499.0,0.13866338]
[1741889134233,0.1,80500.0,80499.0,0.29786338]
[1741889134434,0.1,80500.0,80499.0,0.13866338]
[1741889134738,0.1,80500.0,80499.0,0.29786338]
[1741889134932,0.05646487,80500.0,80499.0,1.18648427]
[1741889135336,0.05646487,80500.0,80499.0,1.02728427]
[1741889135532,0.0129638,80500.0,80499.0,1.12948427]
[1741889135734,0.0129638,80500.0,80499.0,1.13864427]
[1741889136037,0.0129638,80500.0,80499.0,0.8344199]
[1741889136833,0.0129638,80500.0,80499.0,0.84882338]
[1741889137746,0.0621238,80507.0,80499.0,0.71016]
[1741889138040,0.1024,80506.0,80505.0,0.1242506]
[1741889138247,0.1024,80506.0,80502.0,0.0621271]
[1741889138541,0.1024,80506.0,80505.0,0.1242506]
[1741889138934,0.1027,80518.0,80513.0,0.1242371]
[1741889139131,0.0621168,80516.0,80515.0,0.1242347]
[1741889139329,0.1242352,80515.0,80514.0,0.1042]
[1741889139534,0.124246,80508.0,80507.0,0.00018633]
[1741889139744,0.124246,80508.0,80507.0,0.38775383]
[1741889140139,0.1648183,80514.0,80512.0,0.1242386]
[1741889140140,0.1863621,80513.0,80512.0,0.1242386]
[1741889140337,0.0620977,80541.0,80517.0,0.12423]
[1741889140546,0.1242306,80520.0,80519.0,0.1242281]
[1741889141048,0.0621009,80537.0,80519.0,0.04]
[1741889141254,0.062105,80532.0,80527.0,0.1242148]
[1741889141545,0.1242259,80521.0,80520.0,0.1025]
[1741889141935,0.0971,80531.0,80520.0,0.15908]
[1741889142146,0.1242383,80513.0,80512.0,1.08386633]
[1741889142342,0.1242383,80513.0,80512.0,1.08318633]
[1741889143144,0.1986,80514.0,80512.0,1.20742613]
[1741889143350,0.1986,80514.0,80513.0,0.1242383]
[1741889143543,0.1986,80514.0,80513.0,0.2267383]
[1741889143861,0.3228367,80514.0,80513.0,0.2267383]
[1741889144147,0.00880994,80514.0,80513.0,0.2267383]
[1741889144348,0.1242348,80517.0,80514.0,0.0621177]
[1741889144550,0.0621163,80517.0,80516.0,0.1242306]
[1741889145247,0.1242352,80515.0,80512.0,1.08318633]
[1741889145443,0.1242383,80513.0,80512.0,1.08318633]
[1741889146843,0.1242383,80513.0,80512.0,3e-08]
[1741889147041,0.1242661,80495.0,80494.0,0.15908]
[1741889147445,0.1242661,80495.0,80485.0,0.25854]
[1741889147750,0.1242661,80495.0,80484.0,0.37062236]
[1741889147751,0.1242707,80492.0,80484.0,0.37062236]
[1741889148141,0.1242707,80492.0,80491.0,0.23489116]
[1741889148343,0.1242707,80492.0,80491.0,0.16179936]
[1741889148542,0.2694344,80494.0,80483.0,1.08286633]
[1741889148543,0.124283,80484.0,80483.0,0.00018633]
[1741889149849,0.326383,80484.0,80483.0,0.00018633]
[1741889150243,0.326383,80484.0,80483.0,3e-08]
[1741889152355,0.2021,80484.0,80483.0,0.12428463]
[1741889152557,0.326383,80484.0,80483.0,3e-08]
[1741889152952,0.2021,80484.0,80483.0,3e-08]
[1741889153147,0.326383,80484.0,80483.0,0.12428463]
[1741889153354,0.228383,80484.0,80483.0,0.12428463]
[1741889153551,0.1017,80494.0,80483.0,0.01425992]
[1741889153760,0.0621397,80488.0,80487.0,0.1242742]
[1741889154049,0.2039,80494.0,80484.0,0.1011]
[1741889154257,0.2039,80494.0,80493.0,0.1242691]
[1741889154258,0.3281708,80494.0,80493.0,0.1242691]
[1741889154756,0.0959,80509.0,80499.0,0.1242599]
[1741889154962,0.062128,80502.0,80499.0,0.1242599]
[1741889155548,0.15904,80530.0,80498.0,0.0983]
[1741889155750,0.1242516,80508.0,80507.0,0.0621218]
[1741889155945,0.0622718,80514.0,80507.0,0.0621218]
[1741889155946,0.1006,80513.0,80511.0,0.1242398]
[1741889156157,0.0001534,80514.0,80513.0,0.1242383]
[1741889156455,0.1243901,80514.0,80513.0,0.1242383]
[1741889156659,0.0001534,80514.0,80513.0,0.33779819]
[1741889157049,0.0001534,80514.0,80513.0,0.49683819]
[1741889157450,0.062299,80522.0,80513.0,0.2193]
[1741889157451,0.0001863,80522.0,80513.0,0.2193]
[1741889157644,0.1244115,80522.0,80521.0,0.1242259]
[1741889158355,0.0621028,80535.0,80534.0,0.0621016]
[1741889158562,0.04966,80547.0,80521.0,0.01294219]
[1741889158757,0.1863204,80531.0,80530.0,0.1242061]
[1741889159256,0.0621033,80534.0,80530.0,0.1242061]
[1741889159464,0.1242089,80533.0,80532.0,0.1242074]
[1741889159764,0.1242105,80531.0,80530.0,0.2484164]
[1741889159956,0.1242167,80527.0,80524.0,0.00018633]
[1741889160155,0.1242198,80525.0,80524.0,0.00018633]
[1741889162062,0.3200198,80525.0,80524.0,0.98422734]
[1741889163165,0.3200198,80525.0,80505.0,0.71731404]
[1741889163166,0.1242491,80506.0,80505.0,0.71731404]
[1741889163457,0.1242491,80506.0,80505.0,0.58920664]
[1741889164262,0.3178491,80506.0,80505.0,0.58920664]
[1741889164467,0.33102438,80506.0,80505.0,0.54738264]
[1741889165358,0.1242599,80499.0,80498.0,0.47364344]
[1741889165859,0.19996607,80530.0,80500.0,0.36952871]
[1741889166054,0.1242568,80501.0,80500.0,0.36952871]
[1741889166255,0.00018633,80514.0,80500.0,0.36952871]
[1741889166455,0.0621265,80505.0,80504.0,0.062126]
[1741889166860,0.0621227,80509.0,80504.0,0.01374765]
[1741889167061,0.1242485,80507.0,80506.0,0.1863698]
[1741889167868,0.1242485,80507.0,80506.0,0.01374765]
[1741889168363,0.1242485,80507.0,80506.0,5e-08]
[1741889168564,0.04367699,80518.0,80506.0,5e-08]
[1741889168769,0.15896,80516.0,80506.0,5e-08]
[1741889169069,0.1971,80517.0,80500.0,0.56949478]
[1741889169070,0.124246,80509.0,80508.0,0.1242451]
[1741889169265,0.0621209,80511.0,80507.0,0.0621237]
[1741889169452,0.0621209,80511.0,80510.0,0.1242429]
[1741889170161,0.00018633,80514.0,80512.0,0.1242383]
[1741889170469,0.03104,80518.0,80517.0,0.1242321]
[1741889170661,0.1242129,80532.0,80531.0,0.1863057]
[1741889170857,0.1242136,80529.0,80528.0,0.1863218]
[1741889171059,0.0621023,80535.0,80528.0,0.0621072]
[1741889171358,0.0621023,80535.0,80532.0,0.1242059]
[1741889171359,0.1242086,80533.0,80532.0,0.1242059]
[1741889171766,0.1242213,80524.0,80523.0,0.15914633]
[1741889171954,0.1863141,80535.0,80534.0,0.1241989]
[1741889172564,0.0621049,80535.0,80528.0,0.15896]
[1741889172764,0.07672166,80542.0,80541.0,0.1241951]
[1741889172765,0.01462446,80542.0,80541.0,0.1241951]
[1741889172955,0.1047,80574.0,80541.0,0.02]
[1741889173155,0.1241797,80552.0,80551.0,0.1241752]
[1741889173358,0.1241797,80552.0,80550.0,0.06209]
[1741889173359,0.0620905,80551.0,80550.0,0.0620895]
[1741889173563,0.1862702,80551.0,80550.0,0.0620895]
[1741889173765,0.1862702,80551.0,80548.0,0.1241838]
[1741889173766,0.1241843,80549.0,80548.0,0.1241838]
[1741889173960,0.1241889,80545.0,80544.0,0.00018633]
[1741889174160,0.0620883,80553.0,80544.0,0.00018633]
[1741889174367,0.15896,80571.0,80546.0,0.1241871]
[1741889174559,0.6207199,80575.0,80546.0,0.1241871]
[1741889174560,0.1241889,80547.0,80546.0,0.1241826]
[1741889175355,0.1241889,80546.0,80545.0,0.2831482]
[1741889175667,0.1241889,80546.0,80545.0,0.2187882]
[1741889175964,0.1241889,80546.0,80545.0,0.0946]
[1741889176771,0.1241889,80545.0,80544.0,0.36971504]
[1741889177267,0.3315889,80545.0,80544.0,0.36971504]
[1741889178276,0.3315889,80545.0,80544.0,0.00018633]
[1741889178569,0.2271889,80545.0,80544.0,0.00018633]
[1741889178772,0.2271889,80545.0,80544.0,3e-08]
[1741889179971,0.3869089,80545.0,80544.0,3e-08]
[1741889180359,0.2271889,80545.0,80544.0,3e-08]
[1741889182466,0.1241889,80545.0,80544.0,3e-08]
[1741889184874,0.1241889,80545.0,80544.0,0.12419053]
[1741889185170,0.1241889,80545.0,80544.0,3e-08]
[1741889185668,0.1241889,80545.0,80544.0,0.12419053]
[1741889185870,0.1241889,80545.0,80544.0,3e-08]
[1741889186377,0.2831089,80545.0,80544.0,3e-08]
[1741889186565,0.1242167,80527.0,80517.0,0.15892]
[1741889186767,0.1242167,80527.0,80518.0,0.099]
[1741889186969,0.1242167,80527.0,80526.0,0.0628644]
[1741889187277,0.15892,80528.0,80518.0,0.099]
[1741889187278,0.124229,80519.0,80518.0,0.099]
[1741889187777,0.1242321,80517.0,80516.0,0.36910184]
[1741889188471,0.2233321,80517.0,80516.0,0.36910184]
[1741889189270,0.26428311,80517.0,80516.0,0.36910184]
[1741889189680,0.26428311,80517.0,80511.0,0.5419222]
[1741889189681,0.1242398,80512.0,80511.0,0.099]
[1741889189979,0.1242398,80512.0,80494.0,0.0621337]
[1741889189980,0.0621429,80483.0,80481.0,0.1242844]
[1741889190166,0.1242861,80482.0,80481.0,0.101]
[1741889190669,0.1242861,80482.0,80481.0,0.2252877]
[1741889190865,0.1242861,80482.0,80481.0,0.101]
[1741889191269,0.1242861,80482.0,80481.0,0.2252877]
[1741889191469,0.00018632,80490.0,80481.0,0.101]
[1741889191673,0.1864281,80486.0,80485.0,0.0621396]
[1741889192275,0.1242861,80482.0,80481.0,0.101]
[1741889192778,0.1242861,80482.0,80462.0,0.00064]
[1741889192779,0.1242985,80474.0,80462.0,0.00064]
[1741889192987,0.01648815,80479.0,80461.0,0.01633367]
[1741889193275,0.01648815,80479.0,80478.0,0.1242923]
[1741889193476,0.14077895,80479.0,80478.0,0.1242923]
[1741889193871,0.1242908,80479.0,80478.0,0.1242923]
[1741889194170,0.186432,80486.0,80485.0,0.0621393]
[1741889194782,0.186432,80486.0,80485.0,0.10371275]
[1741889195367,0.186432,80486.0,80485.0,0.01598979]
[1741889195784,0.0621426,80486.0,80461.0,0.15896]
[1741889196084,0.1864464,80478.0,80477.0,0.1242882]
[1741889196268,0.1597413,80485.0,80484.0,0.124283]
[1741889196473,0.0621413,80485.0,80484.0,0.124283]
[1741889196671,0.00015413,80485.0,80483.0,0.2083]
[1741889196881,0.124283,80484.0,80483.0,0.2083]
[1741889197274,0.124283,80484.0,80483.0,0.3325846]
[1741889197470,0.124283,80484.0,80483.0,0.2083]
[1741889197681,0.317983,80484.0,80483.0,0.1066]
[1741889198069,0.317983,80484.0,80476.0,0.00018632]
[1741889198070,0.1242938,80477.0,80476.0,0.00018632]